[Event "CCT Julius Baer-D2 2024"]
[Site "Online"]
[Date "2024.09.30"]
[Round "54"]
[White "Indjic, Aleksandar"]
[Black "Vidit, Santosh Gujrathi"]
[Result "0-1"]
[ECO "A09"]
[WhiteElo "2611"]
[BlackElo "2720"]
[Annotator "TA"]
[PlyCount "90"]
[EventDate "2024.09.25"]
[EventType "swiss"]
[EventCountry "NET"]
[SourceTitle "playchess.com"]
[Source "ChessBase"]
[SourceQuality "1"]
[TimeControl "600+2"]

{[%evp 48,90,-102,-93,-89,-85,-86,-247,-51,-156,0,0,0,0,16,20,27,25,16,20,20,0,0,0,0,0,0,0,0,-113,-116,-108,0,-239,-239,-239,-238,-29975,-29976,-29976,-29977,-29977,-29978,-29976,-29976]} 1. Nf3 {[%emt 0:00:03]} d5 {[%emt 0:00:07]} 2. g3 {[%emt 0:00:02]} Nf6 {[%emt 0:00:05]} 3. Bg2 {[%emt 0:00:02]} c5 {[%emt 0:00:01]} 4. c4 {[%emt 0:00:03]} d4 {[%emt 0:00:05]} 5. e3 {[%emt 0:00:02]} Nc6 {[%emt 0:00:01]} 6. exd4 {[%emt 0:00:01]} cxd4 {[%emt 0:00:01]} 7. d3 {[%emt 0:00:01]} e5 {[%emt 0:00:24]} 8. O-O {[%emt 0:00:02]} Bd6 {[%emt 0:00:04]} 9. Bg5 {[%emt 0:00:23]} h6 {[%emt 0:00:04]} 10. Bxf6 {[%emt 0:00:01]} Qxf6 {[%emt 0:00:00]} 11. Nbd2 {[%emt 0:00:01]} Bf5 {[%emt 0:00:07]} 12. Ne1 {[%emt 0:01:12]} O-O {[%emt 0:00:11]} 13. a3 {[%emt 0:00:03]} a5 {[%emt 0:00:16]} 14. Qe2 {[%emt 0:00:02]} Rfe8 {[%emt 0:00:11]} 15. Ne4 {[%emt 0:00:02]} Qg6 {[%emt 0:00:04]} 16. Nf3 {[%emt 0:00:05]} Bxe4 {[%emt 0:00:15]} 17. dxe4 {[%emt 0:00:00]} a4 {[%emt 0:00:08]} 18. Rac1 {[%emt 0:00:02]} Na5 {[%emt 0:01:24]} 19. c5 {[%emt 0:00:11]} Bf8 {[%emt 0:00:03]} 20. Nd2 {[%emt 0:01:28]} Rec8 {[%emt 0:00:04]} 21. Qd1 {[%emt 0:00:19]} Qc6 {[%emt 0:00:27]} 22. f4 {[%emt 0:00:02]} Bxc5 {[%emt 0:00:15]} 23. fxe5 {[%emt 0:00:01]} Qe6 {[%emt 0:00:18]} 24. Qxa4 {[%emt 0:00:06]} d3+ {[%emt 0:00:53]} (24... Qxe5 $2 25. Rf5 Qe7 $18) 25. Kh1 {[%emt 0:00:17] [#]} Be3 $1 {[%emt 0:00:04]} (25... Qxe5 $6 26. Qb5 Bd4 27. Rxc8+ Rxc8 28. Qxd3 Bxb2 29. Rxf7 $14) 26. Rxc8+ {[%emt 0:00:02]} Qxc8 {[%emt 0:00:01]} 27. Qb4 $2 {[%emt 0:00:36]} (27. Nf3 $17) 27... Qc2 $2 {[%emt 0:00:35]} (27... Nc6 $19 28. Qc3 Bxd2 29. Qxd2 Nxe5) 28. Qe7 {[%emt 0:00:31]} (28. Nb1 $1 $15) 28... Qxd2 $2 {[%emt 0:00:21]} (28... Bxd2 $17 29. Qxf7+ Kh8) 29. Qxf7+ $11 {[%emt 0:00:03]} Kh8 {[%emt 0:01:14]} 30. e6 {[%emt 0:00:01]} Bg5 {[%emt 0:01:18]} (30... Bc5 $5 31. b4 $8 Nc4 32. bxc5 Ne3 $11) 31. h4 {[%emt 0:00:56]} Nc4 $1 {[%emt 0:00:02]} 32. hxg5 {[%emt 0:00:32]} Ne3 {[%emt 0:00:01]} (32... Qxb2 33. g6 (33. e7 Ne5 $18) 33... Qxa3 34. e7 (34. Qxb7 Rg8 $11) (34. Qxb7 Rg8 $11)) 33. Rg1 {[%emt 0:00:45]} Ng4 $1 {[%emt 0:00:01]} 34. Rf1 {[%emt 0:00:23]} Ne3 {[%emt 0:00:01]} (34... Qxg5 $2 35. e7 (35. Qxb7 $2 Qh5+) 35... Qe5 36. Bf3 $18 (36. Qf8+ Kh7 $16)) 35. Rf2 {[%emt 0:00:38]} (35. Rg1 Ng4 $14) 35... Qe1+ {[%emt 0:00:03]} 36. Bf1 {[%emt 0:00:13]} Nxf1 {[%emt 0:00:16]} (36... hxg5 37. Rh2#) 37. Rxf1 {[%emt 0:00:25]} Qxg3 {[%emt 0:00:02]} 38. Rf3 {[%emt 0:00:06]} (38. Qxb7 $2 Ra5 39. Rf5 d2 $19) (38. Qh5 $11 {keeps the balance.} d2 39. e7) 38... Qh4+ $17 {[%emt 0:00:15]} (38... Qxg5 39. e7 (39. Qxb7 $2 Ra5 $19) 39... Qh4+ 40. Kg2 Qxe4 41. Qf8+ Kh7 42. Qf5+ (42. Qxa8 Qe2+ 43. Kg3 Qe5+ 44. Rf4 Qe3+ 45. Kg2 Qe2+ 46. Rf2 Qe4+ 47. Rf3 Qe2+ 48. Rf2 Qe4+ 49. Rf3 $11) 42... Qxf5 43. Rxf5 $17) 39. Kg2 {[%emt 0:00:06]} d2 {[%emt 0:00:11]} (39... Qxg5+ $17 40. Rg3 Qe5 41. Qxb7 Re8 42. Rxd3 Rxe6 (42... Qxe6 43. Rg3 $15)) 40. e7 $2 {[%emt 0:00:59]} (40. gxh6 Rg8 (40... d1=R 41. Qxg7#) (40... gxh6 41. e7 $11) (40... Qxh6 41. Qd7 $14) 41. Rg3 (41. Qxb7 gxh6+) 41... Qxe4+ (41... d1=R 42. hxg7+ Kh7 43. Qg6#) 42. Kh2 Qh4+ (42... d1=R 43. hxg7+ Kh7 44. Qh5#) 43. Kg2 Qxg3+ (43... d1=R 44. hxg7+ Kh7 45. Qg6#) (43... Qxh6 $2 44. Qd7 $18) 44. Kxg3 d1=Q $19 (44... d1=R $2 45. e7 $18)) (40. g6 $1 $11 {and White stays safe.} Rg8 (40... d1=R 41. Qf8+ Rxf8 42. Rxf8#) (40... Qxe4 41. e7 $11) 41. e7 Qxe4 (41... d1=R 42. Qxg8+ Kxg8 43. e8=Q#) 42. Kh3 Qxe7 (42... d1=R 43. Qxg8+ Kxg8 44. Rf8#) 43. Qxe7) 40... Qg4+ $19 {[%emt 0:00:28]} (40... d1=R 41. e8=Q+ (41. e8=R+ Rxe8 42. Qxe8+ Kh7 43. g6#) 41... Rxe8 42. Qxe8+ Kh7 43. g6#) 41. Rg3 {[%emt 0:00:22]} Qxe4+ {[%emt 0:00:08]} (41... d1=Q 42. e8=Q+ (42. e8=R+ Rxe8 43. Qxe8+ Kh7 44. g6+ Qxg6 45. Qxg6+ Kh8 46. Qxg7#) 42... Rxe8 43. Qxe8+ Kh7 44. g6+) (41... Qe2+ 42. Kh3 hxg5 (42... d1=B 43. Qf8+) (42... Qxe4 $2 43. Qf8+ $18) 43. Rf3 (43. e8=R+ Rxe8 44. Qxe8+ Kh7 $19) (43. e8=N g4+ 44. Rxg4 Qxg4+ 45. Kxg4 d1=Q+ 46. Kf5 Qf3+ 47. Ke6 Qxe4+ 48. Kd7 Qxe8+ 49. Qxe8+ Rxe8 $19) 43... g4+ (43... d1=R $2 44. Qh5+ Kg8 45. Rf8+ Rxf8 46. exf8=Q+ Kxf8 47. Qxe2 $18) 44. Kxg4 Qxe4+ (44... d1=R 45. Qh5+ Kg8 46. Qf7+ Kh8 47. Qh5+ Kg8 48. Qf7+ Kh8 $11) (44... d1=Q 45. Qh5+ Kg8 46. Qf7+ Kh8 47. e8=Q+ Rxe8 48. Qh5+ Kg8 49. Qxe8+ Kh7 50. Qh5+ Kg8 51. Qf7+ Kh8 52. Qh5+ Kg8 53. Qe8+ Kh7 54. Qh5+ Kg8 $11) 45. Kg3 $11) 42. Kh2 $2 {[%emt 0:00:00]} (42. Kf2 $19 d1=Q (42... d1=R $2 43. Qf8+ $18) 43. Qf8+ Kh7 (43... Rxf8+ 44. exf8=Q+ Kh7 45. g6+ $17) 44. g6+ Qxg6 45. Rxg6 Qd4+ 46. Ke1) 42... d1=Q {[%emt 0:00:16]} (42... d1=R $2 {is the wrong capture.} 43. Qf8+ Kh7 (43... Rxf8 $2 44. exf8=Q+ Kh7 45. g6+ $18) 44. g6+ $18 (44. Qxa8 $2 Qh1#) (44. Qxa8 $2 Qh1#)) 43. Qf8+ {[%emt 0:00:03]} Kh7 {[%emt 0:00:13]} ({Weaker is} 43... Rxf8 44. exf8=Q+ Kh7 45. g6+ $19) 44. g6+ {[%emt 0:00:02]} Qxg6 {[%emt 0:00:01]} 45. Rxg6 {[%emt 0:00:02]} Qh5+ {[%emt 0:00:01]} 0-1

[Event "CCT Julius Baer-D2 2024"]
[Site "Online"]
[Date "2024.09.30"]
[Round "54"]
[White "Lazavik, Denis"]
[Black "Sargsyan, Shant"]
[Result "1-0"]
[ECO "D38"]
[WhiteElo "2578"]
[BlackElo "2649"]
[Annotator "RC"]
[PlyCount "101"]
[EventDate "2024.09.25"]
[EventType "swiss"]
[EventCountry "NET"]
[SourceTitle "playchess.com"]
[Source "ChessBase"]
[SourceQuality "1"]
[TimeControl "600+2"]

1. d4 {[%emt 0:00:02]} Nf6 {[%emt 0:00:03]} 2. c4 {[%emt 0:00:03]} e6 {[%emt 0:00:00]} 3. Nf3 {[%emt 0:00:01]} d5 {[%emt 0:00:01]} 4. Nc3 {[%emt 0:00:01]} Bb4 {[%emt 0:00:00]} 5. Bg5 {[%emt 0:00:02]} h6 {[%emt 0:00:01]} 6. Bxf6 {[%emt 0:00:01]} Qxf6 {[%emt 0:00:00]} 7. Qa4+ {[%emt 0:00:01]} Nc6 {[%emt 0:00:01]} 8. e3 {[%emt 0:00:01]} O-O {[%emt 0:00:08]} 9. a3 {[%emt 0:00:02]} Bxc3+ {[%emt 0:00:04]} 10. bxc3 {[%emt 0:00:00]} Bd7 {[%emt 0:00:06]} 11. cxd5 {[%emt 0:00:09]} exd5 {[%emt 0:00:02]} 12. Bd3 {[%emt 0:00:03]} Qd6 {[%emt 0:00:08]} 13. O-O {[%emt 0:00:19]} b6 {[%emt 0:00:01]} 14. Qc2 {[%emt 0:00:09]} Na5 {[%emt 0:00:05]} 15. Ne5 {[%emt 0:00:12]} Rad8 {[%emt 0:00:27]} 16. f4 {[%emt 0:00:37]} c5 {[%emt 0:00:04]} 17. Qe2 {[%emt 0:00:56]} Nc6 {[%emt 0:00:26]} 18. Rf3 {[%emt 0:01:05]} Qe7 {[%emt 0:00:21]} 19. Qf2 {[%emt 0:00:09]} Be8 {[%emt 0:01:27]} 20. Rg3 {[%emt 0:00:59]} f6 {[%emt 0:00:44]} 21. Nf3 {[%emt 0:00:03]} Qe6 {[%emt 0:00:26]} 22. Re1 {[%emt 0:00:06]} f5 {[%emt 0:01:03]} 23. Ne5 {[%emt 0:00:03]} Nxe5 {[%emt 0:00:00]} 24. fxe5 {[%emt 0:00:04]} cxd4 {[%emt 0:00:01]} 25. cxd4 {[%emt 0:00:05]} Rc8 {[%emt 0:00:00]} 26. Rf3 {[%emt 0:00:12]} Bd7 {[%emt 0:00:07]} 27. Rf1 {[%emt 0:00:07]} Qe7 {[%emt 0:01:21]} 28. g4 {[%emt 0:00:15]} Qg5 {[%emt 0:00:47]} 29. Qg3 {[%emt 0:00:22]} Rc3 {[%emt 0:00:25]} 30. h4 {[%emt 0:00:50]} Qg6 {[%emt 0:00:38]} 31. Bxf5 {[%emt 0:00:12]} Bxf5 {[%emt 0:00:04]} 32. gxf5 {[%emt 0:00:01]} Qxg3+ {[%emt 0:00:23]} 33. Rxg3 {[%emt 0:00:00]} Kh7 {[%emt 0:00:00]} 34. e6 {[%emt 0:02:08]} b5 {[%emt 0:00:18]} 35. Kg2 {[%emt 0:00:18]} Rc2+ {[%emt 0:00:35]} 36. Kh3 {[%emt 0:00:04]} a5 {[%emt 0:00:01]} 37. e4 {[%emt 0:00:21]} dxe4 {[%emt 0:00:26]} 38. d5 {[%emt 0:00:00]} Rd2 {[%emt 0:00:06]} 39. Rfg1 {[%emt 0:00:01]} g5 {[%emt 0:00:09]} 40. e7 {[%emt 0:00:18]} Ra8 {[%emt 0:00:01]} 41. hxg5 {[%emt 0:00:28]} Rxd5 {[%emt 0:00:02]} 42. gxh6 {[%emt 0:00:12]} Rxf5 {[%emt 0:00:03]} 43. Rg7+ {[%emt 0:00:02]} Kxh6 {[%emt 0:00:01]} 44. R1g6+ {[%emt 0:00:00]} Kh5 {[%emt 0:00:01]} 45. Rg8 {[%emt 0:00:02]} Re5 {[%emt 0:00:20]} 46. Rxa8 {[%emt 0:00:05]} Kxg6 {[%emt 0:00:01]} 47. e8=Q+ {[%emt 0:00:01]} Rxe8 {[%emt 0:00:00]} 48. Rxe8 {[%emt 0:00:01]} Kf5 {[%emt 0:00:01]} 49. Kg3 {[%emt 0:00:01]} b4 {[%emt 0:00:01]} 50. axb4 {[%emt 0:00:00]} axb4 {[%emt 0:00:00]} 51. Rb8 {[%emt 0:00:01]} 1-0

[Event "CCT Julius Baer-D2 2024"]
[Site "Online"]
[Date "2024.09.30"]
[Round "55"]
[White "Vidit, Santosh Gujrathi"]
[Black "Lazavik, Denis"]
[Result "1/2-1/2"]
[ECO "C55"]
[WhiteElo "2720"]
[BlackElo "2578"]
[Annotator "TA"]
[PlyCount "64"]
[EventDate "2024.09.25"]
[EventType "swiss"]
[EventCountry "NET"]
[SourceTitle "playchess.com"]
[Source "ChessBase"]
[SourceQuality "1"]
[TimeControl "600+2"]

{[%evp 9,64,6,13,16,12,8,11,8,12,0,0,5,0,-17,0,-4,-8,-18,-21,-19,-11,-2,-4,-29,-29,-31,-30,-34,-12,-35,-23,-25,-22,-56,0,0,0,0,-4,-5,0,0,0,0,0,0,5,0,5,0,7,5,14,10,14,12,20]} 1. e4 {[%emt 0:00:04]} e5 {[%emt 0:00:03]} 2. Nf3 {[%emt 0:00:01]} Nc6 {[%emt 0:00:01]} 3. Bc4 {[%emt 0:00:02]} Nf6 {[%emt 0:00:02]} 4. d3 {[%emt 0:00:01]} Be7 {[%emt 0:00:01]} 5. Nc3 {[%emt 0:00:04]} O-O {[%emt 0:00:04]} 6. a3 {[%emt 0:00:04]} d6 {[%emt 0:00:01]} 7. Be3 {[%emt 0:00:02]} Be6 {[%emt 0:00:19]} 8. Nd5 {[%emt 0:00:01]} Qd7 {[%emt 0:00:26]} 9. Ng5 {[%emt 0:00:48]} Bxd5 {[%emt 0:00:52]} 10. exd5 {[%emt 0:00:03]} Nd4 {[%emt 0:00:01]} 11. O-O {[%emt 0:00:42]} c6 {[%emt 0:00:07]} 12. dxc6 {[%emt 0:00:09]} bxc6 {[%emt 0:00:01]} 13. Ba2 {[%emt 0:00:16]} d5 {[%emt 0:00:12]} 14. Bxd4 {[%emt 0:00:22]} exd4 {[%emt 0:00:02]} 15. Nf3 {[%emt 0:00:00]} c5 {[%emt 0:00:06]} 16. c4 {[%emt 0:00:22]} dxc3 {[%emt 0:00:05]} 17. bxc3 {[%emt 0:00:01]} Bd6 {[%emt 0:00:07]} 18. Re1 {[%emt 0:00:07]} Rfe8 {[%emt 0:00:03]} 19. Qd2 {[%emt 0:00:08]} h6 {[%emt 0:00:03]} 20. g3 {[%emt 0:00:06]} Rxe1+ {[%emt 0:00:23]} 21. Rxe1 {[%emt 0:00:03]} Re8 {[%emt 0:00:00]} (21... Qa4 $15) 22. Rxe8+ $11 {[%emt 0:00:08] Die Stellung ist ausgeglichen.} Qxe8 {[%emt 0:00:03]} 23. Bb3 {[%emt 0:00:19]} Qb5 {[%emt 0:00:57]} 24. Bd1 {[%emt 0:00:31]} Kf8 {[%emt 0:00:24]} 25. a4 {[%emt 0:00:03]} Qd7 {[%emt 0:00:04]} 26. Kg2 {[%emt 0:00:21]} Qb7 {[%emt 0:00:28]} 27. Qc2 {[%emt 0:00:32]} Qd7 {[%emt 0:00:05]} 28. Qb2 {[%emt 0:00:08]} Qc7 {[%emt 0:00:16]} 29. Qb5 {[%emt 0:00:12]} Qb6 {[%emt 0:00:07]} 30. c4 {[%emt 0:00:10]} Qxb5 {[%emt 0:00:43]} 31. axb5 {[%emt 0:00:23]} dxc4 {[%emt 0:00:03]} 32. dxc4 {[%emt 0:00:00]} Ke7 {[%emt 0:00:00] Gewichteter Fehlerwert: Weiß=0.07 (makellos) /Schwarz=0.06 (makellos) .  Fehler:       	---       	Schwarz=1     Ungenau:       	Weiß=1     	---        OK:         	Weiß=8     	Schwarz=8} 1/2-1/2

[Event "CCT Julius Baer-D2 2024"]
[Site "Online"]
[Date "2024.09.30"]
[Round "55"]
[White "Lazavik, Denis"]
[Black "Vidit, Santosh Gujrathi"]
[Result "1/2-1/2"]
[ECO "D35"]
[WhiteElo "2578"]
[BlackElo "2720"]
[Annotator "TA"]
[PlyCount "155"]
[EventDate "2024.09.25"]
[EventType "swiss"]
[EventCountry "NET"]
[SourceTitle "playchess.com"]
[Source "ChessBase"]
[SourceQuality "1"]
[TimeControl "600+2"]

{[%evp 81,155,0,0,0,0,0,0,0,0,0,0,0,0,0,0,0,0,0,0,0,0,0,0,0,0,0,0,0,0,0,0,0,0,0,0,0,0,0,0,0,0,-3245,-2707,-2661,-2646,-2639,-2639,-2626,-2120,-12788,-24,-25,-8,-8,-8,-8,0,0,0,0,0,0,0,0,0,0,0,0,0,0,0,0,0,0,0,0]} 1. d4 {[%emt 0:00:02]} d5 {[%emt 0:00:04]} 2. c4 {[%emt 0:00:01]} c6 {[%emt 0:00:01]} 3. Nf3 {[%emt 0:00:00]} Nf6 {[%emt 0:00:01]} 4. Nc3 {[%emt 0:00:01]} e6 {[%emt 0:00:01]} 5. cxd5 {[%emt 0:00:05]} exd5 {[%emt 0:00:02]} 6. Qc2 {[%emt 0:00:03]} g6 {[%emt 0:00:13]} 7. Bg5 {[%emt 0:00:02]} Be7 {[%emt 0:00:17]} 8. e3 {[%emt 0:00:01]} Bf5 {[%emt 0:00:10]} 9. Bd3 {[%emt 0:00:01]} Bxd3 {[%emt 0:00:02]} 10. Qxd3 {[%emt 0:00:01]} Nbd7 {[%emt 0:00:06]} 11. Bh6 {[%emt 0:00:01]} Ng4 {[%emt 0:00:22]} 12. Bf4 {[%emt 0:00:03]} O-O {[%emt 0:00:04]} 13. O-O {[%emt 0:00:12]} Ngf6 {[%emt 0:00:15]} 14. h3 {[%emt 0:00:02]} Re8 {[%emt 0:00:02]} 15. Qc2 {[%emt 0:00:14]} Bb4 {[%emt 0:00:44]} 16. Ne1 {[%emt 0:00:16]} Qe7 {[%emt 0:00:53]} 17. Nd3 {[%emt 0:00:03]} Bd6 {[%emt 0:00:01]} 18. Bxd6 {[%emt 0:01:05]} Qxd6 {[%emt 0:00:00]} 19. a4 {[%emt 0:00:02]} a5 {[%emt 0:00:55]} 20. Rab1 {[%emt 0:00:16]} Nb6 {[%emt 0:00:27]} 21. b3 {[%emt 0:00:05]} Re7 {[%emt 0:00:03]} 22. Rfc1 {[%emt 0:00:26]} h5 {[%emt 0:00:06]} 23. Nc5 {[%emt 0:00:21]} Kg7 {[%emt 0:00:05]} 24. Qd3 {[%emt 0:00:39]} Rd8 {[%emt 0:00:16]} 25. b4 {[%emt 0:00:37]} axb4 {[%emt 0:02:04]} 26. Rxb4 {[%emt 0:00:00]} Nbd7 {[%emt 0:00:15]} 27. Rxb7 {[%emt 0:00:34]} Nxc5 {[%emt 0:00:01]} 28. dxc5 {[%emt 0:00:01]} Qxc5 {[%emt 0:00:01]} 29. Rxe7 {[%emt 0:00:06]} Qxe7 {[%emt 0:00:00]} 30. Qc2 {[%emt 0:00:53]} c5 {[%emt 0:00:55]} 31. Nb5 {[%emt 0:00:07]} d4 {[%emt 0:00:10]} 32. exd4 {[%emt 0:00:41]} cxd4 {[%emt 0:00:01]} 33. Qd3 {[%emt 0:00:02]} Qb4 {[%emt 0:00:13]} 34. Rd1 {[%emt 0:01:00]} Qxa4 {[%emt 0:00:05]} 35. Nxd4 {[%emt 0:00:02]} Rd5 {[%emt 0:00:14]} 36. Rd2 {[%emt 0:00:11]} Qb4 {[%emt 0:00:11]} 37. Qe3 {[%emt 0:00:39]} Qb1+ {[%emt 0:00:09]} 38. Kh2 {[%emt 0:00:02]} Qb8+ {[%emt 0:00:02]} 39. f4 {[%emt 0:01:22]} Qb4 {[%emt 0:00:21]} 40. Nf3 {[%emt 0:00:08]} Rxd2 {[%emt 0:00:18]} 41. Qxd2 {[%emt 0:00:01]} Qxd2 {[%emt 0:00:13]} 42. Nxd2 {[%emt 0:00:00]} Nd5 {[%emt 0:00:01]} 43. g3 {[%emt 0:00:01]} h4 {[%emt 0:00:02]} 44. Nf3 {[%emt 0:00:03]} hxg3+ {[%emt 0:00:01]} 45. Kxg3 {[%emt 0:00:01]} Kf6 {[%emt 0:00:03]} 46. Ng5 {[%emt 0:00:05]} Ne3 {[%emt 0:00:04]} 47. Kf3 {[%emt 0:00:01]} Nf5 {[%emt 0:00:01]} 48. Ne4+ {[%emt 0:00:01]} Ke7 {[%emt 0:00:02]} 49. Ng5 {[%emt 0:00:09]} f6 {[%emt 0:00:02]} 50. Ne4 {[%emt 0:00:01]} Ng7 {[%emt 0:00:07]} 51. Ng3 {[%emt 0:00:03]} Ke6 {[%emt 0:00:03]} 52. Kg4 $1 {[%emt 0:00:02]} f5+ {[%emt 0:00:03]} 53. Kf3 {[%emt 0:00:08]} (53. Kg5 $5 Kf7 $8 54. Ne2 $11) 53... Kd5 {[%emt 0:00:02]} 54. h4 {[%emt 0:00:08]} Kd4 {[%emt 0:00:05]} 55. Ne2+ {[%emt 0:00:00]} Kd3 {[%emt 0:00:02]} 56. Ng3 $1 {[%emt 0:00:01]} Nh5 {[%emt 0:00:05]} 57. Nf1 {[%emt 0:00:21]} Nf6 {[%emt 0:00:05]} 58. Ne3 {[%emt 0:00:04]} Kd4 {[%emt 0:00:09]} 59. Nc2+ {[%emt 0:00:09]} Kc3 {[%emt 0:00:05]} 60. Ne3 {[%emt 0:00:04]} Kd3 {[%emt 0:00:01]} 61. Kf2 $2 {[%emt 0:00:09][%mdl 8192] [#]} (61. h5 $11 Nxh5 62. Nd5) 61... Ke4 $1 $19 {[%emt 0:00:10]} 62. Ng2 {[%emt 0:00:04]} Nh5 {[%emt 0:00:02]} 63. Ne1 {[%emt 0:00:01]} Nxf4 {[%emt 0:00:14]} ({And not} 63... Kxf4 64. Nd3+ Ke4 65. Nc5+ Kd5 66. Nd7 $11) 64. Nf3 {[%emt 0:00:01]} Nd3+ {[%emt 0:00:01]} 65. Kg3 {[%emt 0:00:01]} Ke3 $2 {[%emt 0:00:05]} ({Black should play} 65... f4+ $19 66. Kg2 Ne5 67. Nd2+ Ke3 68. Nf1+ Kd3) 66. Nh2 $1 $11 {[%emt 0:00:03]} Ne5 {[%emt 0:00:09]} 67. Nf1+ {[%emt 0:00:01]} Ke2 {[%emt 0:00:03]} 68. Nh2 {[%emt 0:00:01]} Ke3 {[%emt 0:00:04]} 69. Nf1+ {[%emt 0:00:00]} Ke4 {[%emt 0:00:01]} 70. Nd2+ $1 {[%emt 0:00:01]} Kd3 {[%emt 0:00:00]} (70... Ke3 $5 71. Nf1+ $8 $11) 71. Nf1 {[%emt 0:00:01]} Ke4 {[%emt 0:00:05]} 72. Nd2+ $1 {[%emt 0:00:01]} Kd5 {[%emt 0:00:02]} 73. Kf4 {[%emt 0:00:02]} Ke6 {[%emt 0:00:01]} 74. Kg5 {[%emt 0:00:01]} Kf7 {[%emt 0:00:02]} 75. h5 {[%emt 0:00:00]} gxh5 {[%emt 0:00:01]} 76. Kxf5 {[%emt 0:00:02]} Nd3 {[%emt 0:00:02]} 77. Kg5 {[%emt 0:00:01]} h4 {[%emt 0:00:00]} 78. Kxh4 {[%emt 0:00:00]} 1/2-1/2

[Event "CCT Julius Baer-D2 2024"]
[Site "Online"]
[Date "2024.09.30"]
[Round "56"]
[White "Martinez Alcantara, Jose Eduardo"]
[Black "Lazavik, Denis"]
[Result "1/2-1/2"]
[ECO "C54"]
[WhiteElo "2607"]
[BlackElo "2578"]
[Annotator "TA"]
[PlyCount "71"]
[EventDate "2024.09.25"]
[EventType "swiss"]
[EventCountry "NET"]
[SourceTitle "playchess.com"]
[Source "ChessBase"]
[SourceQuality "1"]
[TimeControl "600+2"]

{[%evp 15,71,52,85,73,77,86,66,0,9,8,2,-51,-56,-65,-53,-65,-23,-33,-36,-48,-25,-34,-25,-47,-26,-23,-10,-19,0,-35,-9,-34,-16,-50,0,-32,0,-51,0,-46,0,0,0,0,0,0,20,0,0,0,0,0,0,0,0,9,13,0]} 1. e4 {[%emt 0:00:03]} e5 {[%emt 0:00:08]} 2. Nf3 {[%emt 0:00:00]} Nc6 {[%emt 0:00:03]} 3. Bc4 {[%emt 0:00:01]} Bc5 {[%emt 0:00:13]} 4. d3 {[%emt 0:00:01]} Nf6 {[%emt 0:00:00][%cal Bg8f6,Bf6d5,Bd5b6,Bb6c4][%mdl 32] EV=13.88} 5. c3 {[%emt 0:00:03]} O-O {[%emt 0:00:03]} 6. O-O {[%emt 0:00:01]} d5 {[%emt 0:00:02]} 7. exd5 {[%emt 0:00:04]} Nxd5 {[%emt 0:00:00]} 8. Re1 {[%emt 0:00:03]} Bg4 {[%emt 0:00:08]} 9. h3 {[%emt 0:00:11] C54: Giuoco Piano: 4 c3 Pf6, Hoofdvarianten met 5 d4 en 5 d3.} Bh5 {[%emt 0:00:01]} 10. Nbd2 {[%emt 0:00:02] OK} Nb6 {[%emt 0:00:04]} 11. Ne4 {[%emt 0:01:22] Fout (0.6)} (11. b4 $14 Bd6 12. Bb3) 11... Nxc4 $1 $11 {[%emt 0:00:07] Sterk} 12. Nxc5 {[%emt 0:00:02] OK} Nd6 {[%emt 0:00:00] OK} {Wit zou moeten proberen} 13. Ne4 {[%emt 0:01:20] Fout (0.5)} (13. g4 $11 Bg6 14. d4 (14. Nxe5 Nxe5 15. Rxe5 b6 $11)) 13... Nxe4 $15 {[%emt 0:00:15] OK} 14. dxe4 {[%emt 0:00:00]} Qxd1 {[%emt 0:00:15]} 15. Rxd1 {[%emt 0:00:00]} Rfd8 {[%emt 0:00:01] Onnauwkeurig} 16. Be3 {[%emt 0:00:08]} f6 {[%emt 0:00:10] OK} 17. Rxd8+ $146 {[%emt 0:00:04]} ({Predecessor:} 17. Kf1 b6 18. Rxd8+ Rxd8 19. Nd2 Bf7 20. Ke2 {½-½ Kohlmann,A (2028)-Krueger,R (2039) Oberliga Nord W 1920 2019 (6.7)}) 17... Rxd8 {[%emt 0:00:03]} 18. Nd2 {[%emt 0:00:00]} Bf7 {[%emt 0:00:08]} 19. Kf1 {[%emt 0:00:04]} a5 {[%emt 0:00:03]} 20. a4 {[%emt 0:00:06] OK} b6 {[%emt 0:00:04] OK} 21. Ke2 {[%emt 0:00:01]} Be6 {[%emt 0:00:02]} 22. b3 {[%emt 0:00:12] Onnauwkeurig} Kf7 {[%emt 0:00:01] Onnauwkeurig} 23. Rb1 {[%emt 0:00:04]} Ke7 {[%emt 0:00:21]} 24. f3 {[%emt 0:00:06] Onnauwkeurig} {Zwart zou kunnen overwegen} h6 {[%emt 0:00:01] Fout (0.5)} (24... g5 $15) 25. g4 {[%emt 0:00:03] Onnauwkeurig} Ra8 {[%emt 0:00:08] Onnauwkeurig} {Wit moet overwegen} 26. Nf1 {[%emt 0:00:07] Fout (0.5)} (26. h4 $11) {Zwart moet overwegen} 26... Kf7 {[%emt 0:00:25] Fout (0.5)} (26... h5 $15) 27. Ng3 {[%emt 0:00:22] is meer geschikt. Fout (0.5)} (27. h4 $11) 27... Rd8 {[%emt 0:00:16] is de betere optie. Fout (0.5)} (27... h5 $1 $15) 28. h4 $11 {[%emt 0:00:06] OK. De stelling is in evenwicht.} Ne7 {[%emt 0:00:32]} 29. h5 {[%emt 0:00:16] OK} Nc6 {[%emt 0:00:08] OK} 30. Nf1 {[%emt 0:00:07]} Ne7 {[%emt 0:00:08]} 31. Bc1 {[%emt 0:00:08]} Nc6 {[%emt 0:00:48]} 32. Ne3 {[%emt 0:00:03]} Rd7 {[%emt 0:00:22]} 33. Ba3 {[%emt 0:00:03]} Rd8 {[%emt 0:00:03] OK} 34. Bc1 {[%emt 0:00:14] OK} Rd7 {[%emt 0:00:02] OK} 35. Ba3 {[%emt 0:00:01]} Rd8 {[%emt 0:00:01] OK} 36. Bc1 {[%emt 0:00:00] Blunder waarde: Wit=0.21 (precies) /Zwart=0.13 (erg precies) .  Fout:        	Wit=4      	Zwart=3      Onnauwkeurig:    	Wit=3      	Zwart=3      OK:         	Wit=6      	Zwart=8      Sterk:        	---       	Zwart=1} 1/2-1/2